[Event "SVK ECo-C Extraliga 2018-19"]
[Site "Slovakia"]
[Date "2019.04.12"]
[Round "9.7"]
[White "Petran, Peter"]
[Black "Czebe, Attila"]
[Result "0-1"]
[ECO "A04"]
[WhiteElo "2242"]
[BlackElo "2400"]
[Annotator "NA"]
[PlyCount "130"]
[EventDate "2018.11.10"]
[EventType "team-tourn"]
[EventCountry "SVK"]
[SourceTitle "playchess.com"]
[Source "ChessBase"]
[SourceQuality "1"]
[WhiteTeam "Slovan"]
[BlackTeam "Streda"]
[TimeControl "40/5400+30:1800+30"]

1. Nf3 {[%emt 0:00:00]} b6 {[%emt 0:00:00]} 2. e4 {[%emt 0:00:17]} Bb7 {[%emt 0:00:00]} 3. Nc3 {[%emt 0:00:14]} e6 {[%emt 0:04:17]} 4. d4 {[%emt 0:04:51]} Bb4 {[%emt 0:01:48]} 5. Bd3 {[%emt 0:00:19]} Nf6 {[%emt 0:00:25]} 6. Qe2 {[%emt 0:01:22]} d5 {[%emt 0:02:14]} 7. exd5 {[%emt 0:00:46]} Qxd5 {[%emt 0:01:30]} 8. Bd2 {[%emt 0:04:34] B00: Queen's Fianchetto Defence, Nimzowitsch Defence} (8. O-O Bxc3 9. bxc3 Nbd7 10. c4 Qh5 11. Bf4 Rc8 12. a4 a5 13. Rab1 O-O 14. Rb5 c5 15. dxc5 Rxc5 {0-1 (29) Eljanov,P (2734)-Carlsen,M (2827) Douglas 2017}) 8... Bxc3 {[%emt 0:02:49]} 9. Bxc3 {[%emt 0:02:14]} O-O {[%emt 0:01:22]} 10. Bb4 {[%emt 0:04:33]} Re8 {[%emt 0:03:43]} 11. c4 {[%emt 0:11:50]} Qh5 {[%emt 0:01:38]} 12. O-O-O {[%emt 0:02:04]} Bxf3 $146 {[%emt 0:00:38]} ({Predecessor:} 12... Na6 13. Bc3 Nd7 14. h3 c5 15. Be4 Bxe4 16. Qxe4 cxd4 17. Qxd4 Ndc5 18. Qxg7# {1-0 (18) Simon,M (1907)-Mueller,L (1591) Nuremberg 2011}) 13. gxf3 {[%emt 0:00:35]} Nc6 {[%emt 0:00:19]} 14. Bc3 {[%emt 0:00:15]} e5 {[%emt 0:01:24]} 15. d5 {[%emt 0:04:16]} Nd4 {[%emt 0:00:25]} 16. Qe3 {[%emt 0:00:30]} Nd7 {[%emt 0:11:32]} 17. f4 {[%emt 0:05:13]} Nc5 {[%emt 0:02:06]} 18. Bxd4 {[%emt 0:06:34]} exd4 {[%emt 0:01:47]} 19. Qxd4 {[%emt 0:00:10]} Rad8 {[%emt 0:04:52]} 20. Rhg1 {[%emt 0:07:17]} Qh6 {[%emt 0:00:21]} 21. Rg4 {[%emt 0:08:25]} c6 {[%emt 0:07:13]} 22. Bc2 {[%emt 0:03:28]} cxd5 {[%emt 0:02:09]} 23. cxd5 {[%emt 0:01:09]} g6 {[%emt 0:04:29]} 24. Kb1 {[%emt 0:04:22]} Qh5 $2 {[%emt 0:08:43]} (24... Qxh2 $11 {and Black stays safe.} 25. b4 Nd7) 25. f5 {[%emt 0:06:09]} Rxd5 {[%emt 0:00:37]} 26. Rxg6+ {[%emt 0:00:31]} hxg6 {[%emt 0:08:10]} 27. Qxd5 $18 {[%emt 0:00:08]} g5 {[%emt 0:01:28]} 28. b4 {[%emt 0:03:22]} Ne4 {[%emt 0:00:42]} 29. Bxe4 {[%emt 0:04:36]} Rxe4 {[%emt 0:00:04]} 30. Qxe4 {[%emt 0:08:32]} Qxd1+ {[%emt 0:00:03]} 31. Kb2 {[%emt 0:00:05]} Qd2+ {[%emt 0:00:07]} 32. Kb3 {[%emt 0:00:17]} Qxf2 {[%emt 0:00:22]} 33. Qe8+ {[%emt 0:00:21]} Kg7 {[%emt 0:00:08]} 34. Qe5+ {[%emt 0:00:11]} Kh7 {[%emt 0:00:21]} 35. Qf6 {[%emt 0:03:11]} Qe3+ {[%emt 0:00:01]} 36. Kc2 {[%emt 0:02:14]} Kg8 {[%emt 0:00:20]} 37. h3 {[%emt 0:01:22]} b5 {[%emt 0:01:31]} 38. a3 {[%emt 0:00:30]} Qf2+ {[%emt 0:02:31]} 39. Kb1 {[%emt 0:00:29]} Qd2 {[%emt 0:00:53]} 40. Ka1 {[%emt 0:00:50]} Qc1+ {[%emt 0:02:23]} 41. Ka2 {[%emt 0:30:03]} a6 42. Qd8+ {[%emt 0:00:00]} Kg7 {[%emt 0:11:03]} 43. Qd4+ {[%emt 0:00:00]} f6 {[%emt 0:00:18]} 44. Qd7+ {[%emt 0:00:00]} Kh6 {[%emt 0:00:20]} 45. Qe6 {[%emt 0:00:00]} Qc2+ {[%emt 0:01:34]} 46. Ka1 {[%emt 0:00:00]} Qc3+ {[%emt 0:00:12]} 47. Ka2 {[%emt 0:00:00]} Qe5 {[%emt 0:05:54]} 48. Qc8 Qd5+ {[%emt 0:03:43]} 49. Kb2 {[%emt 0:00:00]} Qe5+ {[%emt 0:00:30]} 50. Ka2 {[%emt 0:00:00]} Kg7 51. Qd7+ {[%emt 0:00:00]} Kf8 {[%emt 0:01:00]} 52. Qd8+ {[%emt 0:00:00]} Kf7 {[%emt 0:00:09]} 53. Qd7+ Qe7 {[%emt 0:00:05]} 54. Qc8 {[%emt 0:00:00]} Kg7 {[%emt 0:02:50]} 55. Qc2 {[%emt 0:00:00]} Qd7 {[%emt 0:02:46]} 56. Qe4 {[%emt 0:00:34]} Kh6 {[%emt 0:03:04]} 57. Qg4 {[%emt 0:03:44]} Qd2+ {[%emt 0:02:05]} 58. Kb1 {[%emt 0:00:17]} Qc3 {[%emt 0:00:53]} 59. Ka2 {[%emt 0:00:33]} Qc2+ {[%emt 0:00:09]} 60. Ka1 {[%emt 0:00:01]} Qb3 {[%emt 0:00:04]} 61. h4 {[%emt 0:04:34]} Qxa3+ {[%emt 0:00:09]} 62. Kb1 {[%emt 0:00:01]} Qd3+ {[%emt 0:00:43]} 63. Kb2 {[%emt 0:01:28]} Qd2+ {[%emt 0:00:03]} 64. Kb3 {[%emt 0:00:15]} Qe3+ {[%emt 0:00:03]} 65. Kc2 {[%emt 0:01:10]} Qf2+ {[%emt 0:00:04]} 0-1

[Event "SVK ECo-C Extraliga 2018-19"]
[Site "Slovakia"]
[Date "2019.04.12"]
[Round "9.7"]
[White "Bombek, Peter"]
[Black "Matejovic, Juraj"]
[Result "1/2-1/2"]
[ECO "B22"]
[WhiteElo "2195"]
[BlackElo "2244"]
[Annotator "NA"]
[PlyCount "73"]
[EventDate "2018.11.10"]
[EventType "team-tourn"]
[EventCountry "SVK"]
[SourceTitle "playchess.com"]
[Source "ChessBase"]
[SourceQuality "1"]
[WhiteTeam "Dubnica"]
[BlackTeam "Dunajov"]
[TimeControl "40/5400+30:1800+30"]

1. e4 {[%emt 0:00:00]} c5 {[%emt 0:00:00]} 2. c3 {[%emt 0:00:00]} d5 {[%emt 0:00:36]} 3. exd5 {[%emt 0:00:00]} Qxd5 {[%emt 0:00:16]} 4. d4 {[%emt 0:00:00]} cxd4 {[%emt 0:05:48]} 5. cxd4 {[%emt 0:00:54]} Nc6 {[%emt 0:00:16]} 6. Nf3 {[%emt 0:00:45]} e5 {[%emt 0:00:22]} 7. Nc3 {[%emt 0:00:38]} Bb4 {[%emt 0:00:19]} 8. Bd2 {[%emt 0:00:28]} Bxc3 {[%emt 0:00:21]} 9. Bxc3 {[%emt 0:00:19]} e4 {[%emt 0:00:16]} 10. Ne5 {[%emt 0:01:21]} Nxe5 {[%emt 0:00:19]} 11. dxe5 {[%emt 0:00:00]} Ne7 {[%emt 0:00:31]} 12. Qb3 {[%emt 0:07:57]} Qxb3 {[%emt 0:18:31]} 13. axb3 {[%emt 0:00:14]} O-O {[%emt 0:01:53]} 14. Bc4 {[%emt 0:01:13]} Re8 {[%emt 0:08:29]} 15. O-O {[%emt 0:03:04]} Bf5 {[%emt 0:24:00]} 16. h3 {[%emt 0:07:12]} Ng6 {[%emt 0:15:16]} 17. Bd5 {[%emt 0:04:28]} Re7 {[%emt 0:00:56]} 18. Rfe1 {[%emt 0:04:13]} Nxe5 {[%emt 0:04:46]} 19. Bxe4 {[%emt 0:06:06]} Bxe4 {[%emt 0:01:01]} 20. Rxe4 {[%emt 0:00:39]} Nc6 {[%emt 0:00:11]} 21. Rxe7 {[%emt 0:02:37]} Nxe7 {[%emt 0:00:05]} 22. Rd1 {[%emt 0:03:25]} Nc6 {[%emt 0:00:47]} 23. Rd7 {[%emt 0:00:45]} b5 {[%emt 0:00:56]} 24. Rc7 {[%emt 0:06:21]} Nd8 {[%emt 0:00:28]} 25. b4 {[%emt 0:06:21]} Ne6 {[%emt 0:03:38]} 26. Rb7 {[%emt 0:02:23]} a6 {[%emt 0:00:10]} 27. g3 {[%emt 0:02:18]} h5 {[%emt 0:02:46]} 28. Kg2 {[%emt 0:02:15]} h4 {[%emt 0:02:17]} 29. Rb6 {[%emt 0:08:17]} hxg3 {[%emt 0:01:30]} 30. fxg3 {[%emt 0:00:19]} Ng5 {[%emt 0:01:51]} 31. Rc6 {[%emt 0:08:17]} Ne4 {[%emt 0:01:30]} 32. Kf3 {[%emt 0:03:01]} Ng5+ {[%emt 0:00:19]} 33. Kg4 {[%emt 0:01:58]} Ne4 {[%emt 0:01:43]} 34. h4 {[%emt 0:00:44]} Nxc3 {[%emt 0:02:40]} 35. bxc3 {[%emt 0:05:01]} a5 {[%emt 0:00:06]} 36. bxa5 {[%emt 0:01:29]} Rxa5 {[%emt 0:00:04]} 37. Rc5 {[%emt 0:03:04]} 1/2-1/2

[Event "SVK ECo-C Extraliga 2018-19"]
[Site "Slovakia"]
[Date "2019.04.12"]
[Round "9.7"]
[White "Kopera, Michal"]
[Black "Plachetka, Jan"]
[Result "0-1"]
[ECO "B44"]
[WhiteElo "2136"]
[BlackElo "2291"]
[Annotator "NA"]
[PlyCount "78"]
[EventDate "2018.11.10"]
[EventType "team-tourn"]
[EventCountry "SVK"]
[SourceTitle "playchess.com"]
[Source "ChessBase"]
[SourceQuality "1"]
[WhiteTeam "Zilina"]
[BlackTeam "Liptovska"]
[TimeControl "40/5400+30:1800+30"]

1. e4 {[%emt 0:00:00]} c5 {[%emt 0:00:00]} 2. Nf3 {[%emt 0:00:00]} e6 {[%emt 0:00:00]} 3. d4 {[%emt 0:00:27]} cxd4 {[%emt 0:00:00]} 4. Nxd4 {[%emt 0:00:03]} Nc6 {[%emt 0:00:03]} 5. c4 {[%emt 0:04:22]} Nf6 {[%emt 0:01:13]} 6. Nc3 {[%emt 0:00:41]} Bb4 {[%emt 0:00:50]} 7. Nxc6 {[%emt 0:06:07]} bxc6 {[%emt 0:09:52]} 8. Bd3 {[%emt 0:10:14]} e5 {[%emt 0:04:48]} 9. O-O {[%emt 0:04:36]} O-O 10. Bg5 h6 {[%emt 0:03:01]} 11. Bh4 {[%emt 0:03:34]} Be7 {[%emt 0:01:02]} 12. Bg3 {[%emt 0:04:13]} d6 {[%emt 0:08:17]} 13. c5 {[%emt 0:07:01]} Be6 {[%emt 0:13:15]} 14. cxd6 {[%emt 0:03:27]} Qxd6 {[%emt 0:02:46]} 15. Be2 {[%emt 0:05:15]} Qd4 {[%emt 0:15:08]} 16. Qc2 {[%emt 0:01:55]} Rfd8 {[%emt 0:00:46]} 17. Rfd1 {[%emt 0:04:08]} Qc5 {[%emt 0:00:15]} 18. Rac1 {[%emt 0:11:33]} Rd4 {[%emt 0:02:44]} 19. Qb1 {[%emt 0:06:26]} Qa5 {[%emt 0:00:35]} 20. f3 {[%emt 0:03:57]} Bc5 {[%emt 0:06:23]} 21. Bf2 {[%emt 0:02:33]} Rxd1+ {[%emt 0:01:00]} 22. Rxd1 {[%emt 0:00:55]} Bd4 {[%emt 0:00:27]} 23. Qc2 {[%emt 0:06:16]} Rd8 {[%emt 0:06:57]} 24. Na4 {[%emt 0:03:01]} c5 {[%emt 0:08:09]} 25. b3 {[%emt 0:01:41]} Nd7 {[%emt 0:03:53]} 26. Bc4 {[%emt 0:00:51]} Bxc4 {[%emt 0:00:22]} 27. Qxc4 {[%emt 0:00:51]} Nb6 {[%emt 0:00:31]} 28. Qc2 {[%emt 0:01:54]} Nxa4 {[%emt 0:00:26]} 29. bxa4 {[%emt 0:00:02]} Rb8 {[%emt 0:01:03]} 30. Bxd4 {[%emt 0:02:07]} exd4 {[%emt 0:01:54]} 31. Rc1 {[%emt 0:01:22]} Rc8 {[%emt 0:00:33]} 32. Qc4 {[%emt 0:00:39]} Qd2 {[%emt 0:00:20]} 33. h3 {[%emt 0:02:09]} Rc6 {[%emt 0:02:10]} 34. Rc2 {[%emt 0:02:04]} Qe3+ {[%emt 0:00:57]} 35. Kh2 {[%emt 0:00:34]} d3 {[%emt 0:01:14]} 36. Qd5 {[%emt 0:02:10]} dxc2 {[%emt 0:01:39]} 37. Qxc6 {[%emt 0:00:29]} Qf4+ {[%emt 0:00:13]} 38. g3 {[%emt 0:00:45]} Qd2+ {[%emt 0:00:10]} 39. Kg1 {[%emt 0:00:04]} c1=R# 0-1

[Event "SVK ECo-C Extraliga 2018-19"]
[Site "Slovakia"]
[Date "2019.04.12"]
[Round "9.7"]
[White "Joba, Arpad"]
[Black "Maslikova, Veronika"]
[Result "0-1"]
[ECO "B22"]
[WhiteElo "2054"]
[BlackElo "2225"]
[Annotator "NA"]
[PlyCount "98"]
[EventDate "2018.11.10"]
[EventType "team-tourn"]
[EventCountry "SVK"]
[SourceTitle "playchess.com"]
[Source "ChessBase"]
[SourceQuality "1"]
[WhiteTeam "Komarno"]
[BlackTeam "Podhajska"]
[TimeControl "40/5400+30:1800+30"]

1. e4 {[%emt 0:00:00]} c5 {[%emt 0:00:00]} 2. c3 {[%emt 0:00:00]} d5 {[%emt 0:01:14]} 3. exd5 {[%emt 0:00:00]} Qxd5 {[%emt 0:00:05]} 4. d4 {[%emt 0:00:00]} e6 {[%emt 0:02:04]} 5. Nf3 {[%emt 0:00:27]} Nf6 {[%emt 0:00:57]} 6. Na3 {[%emt 0:00:27]} a6 {[%emt 0:06:50]} 7. Nc4 {[%emt 0:09:02]} Nbd7 {[%emt 0:08:15]} 8. Be3 {[%emt 0:19:42]} b5 {[%emt 0:20:58]} 9. Nce5 {[%emt 0:02:25]} cxd4 {[%emt 0:08:32]} 10. Bxd4 {[%emt 0:00:53]} Nxe5 {[%emt 0:02:18]} 11. Nxe5 {[%emt 0:03:42]} Bb7 {[%emt 0:01:27]} 12. Qb3 {[%emt 0:08:26]} Qe4+ {[%emt 0:07:55]} 13. Be2 {[%emt 0:00:17]} Bd5 {[%emt 0:01:01]} 14. f3 {[%emt 0:09:14]} Bxb3 {[%emt 0:01:56]} 15. fxe4 {[%emt 0:00:09]} Bc2 {[%emt 0:00:10]} 16. Nd3 {[%emt 0:01:11]} Nxe4 {[%emt 0:08:29]} 17. O-O {[%emt 0:03:30]} Nd2 {[%emt 0:04:53]} 18. Rf2 {[%emt 0:00:46]} Nc4 {[%emt 0:00:24]} 19. Bf1 {[%emt 0:00:27]} Bxd3 {[%emt 0:01:44]} 20. Bxd3 {[%emt 0:00:07]} Nd6 {[%emt 0:02:28]} 21. a4 {[%emt 0:06:12]} Rb8 {[%emt 0:00:31]} 22. axb5 {[%emt 0:01:52]} axb5 {[%emt 0:00:51]} 23. Ra7 {[%emt 0:05:21]} f6 {[%emt 0:01:57]} 24. Rxf6 {[%emt 0:00:30]} gxf6 {[%emt 0:01:05]} 25. Bxf6 {[%emt 0:00:06]} Ne4 {[%emt 0:06:30]} 26. Bxh8 {[%emt 0:04:49]} Bc5+ {[%emt 0:00:04]} 27. Bd4 {[%emt 0:00:08]} Bxa7 {[%emt 0:00:34]} 28. Bxa7 {[%emt 0:00:09]} Ra8 {[%emt 0:01:09]} 29. Bxe4 {[%emt 0:00:24]} Rxa7 {[%emt 0:00:06]} 30. Bc6+ {[%emt 0:00:23]} Ke7 {[%emt 0:00:05]} 31. Bxb5 {[%emt 0:00:05]} Ra1+ {[%emt 0:00:33]} 32. Bf1 {[%emt 0:05:19]} Rb1 {[%emt 0:00:13]} 33. b4 {[%emt 0:00:25]} Rb3 {[%emt 0:00:14]} 34. Bd3 {[%emt 0:03:07]} h6 {[%emt 0:00:10]} 35. Kf2 {[%emt 0:00:19]} Rxc3 {[%emt 0:00:05]} 36. Ke3 {[%emt 0:00:07]} Rb3 {[%emt 0:00:39]} 37. b5 {[%emt 0:00:07]} Kd6 {[%emt 0:02:28]} 38. g4 {[%emt 0:07:09]} Rb2 {[%emt 0:02:19]} 39. Be2 {[%emt 0:01:24]} Ke5 {[%emt 0:00:36]} 40. h4 {[%emt 0:01:02]} Rb4 {[%emt 0:00:53]} 41. h5 {[%emt 0:38:58]} Rb1 {[%emt 0:33:19]} 42. Bd3 {[%emt 0:00:00]} Rb3 {[%emt 0:00:00]} 43. g5 {[%emt 0:00:00]} hxg5 {[%emt 0:00:00]} 44. h6 {[%emt 0:00:00]} Kf6 {[%emt 0:00:00]} 45. h7 {[%emt 0:00:00]} Kg7 {[%emt 0:00:00]} 46. Kd4 {[%emt 0:00:00]} g4 {[%emt 0:00:00]} 47. Kc4 {[%emt 0:00:00]} g3 {[%emt 0:00:00]} 48. Be4 {[%emt 0:00:00]} Rb2 {[%emt 0:00:00]} 49. Kc3 {[%emt 0:00:00]} Rxb5 {[%emt 0:00:00]} 0-1

[Event "SVK ECo-C Extraliga 2018-19"]
[Site "Slovakia"]
[Date "2019.04.12"]
[Round "9.8"]
[White "Farkas, Gabor"]
[Black "Kostolansky, Sebastian Lukas"]
[Result "1/2-1/2"]
[ECO "E01"]
[WhiteElo "2370"]
[BlackElo "2308"]
[Annotator "NA"]
[PlyCount "104"]
[EventDate "2018.11.10"]
[EventType "team-tourn"]
[EventCountry "SVK"]
[SourceTitle "playchess.com"]
[Source "ChessBase"]
[SourceQuality "1"]
[WhiteTeam "Streda"]
[BlackTeam "Slovan"]
[TimeControl "40/5400+30:1800+30"]

1. d4 {[%emt 0:00:00]} Nf6 {[%emt 0:00:00]} 2. c4 {[%emt 0:00:09]} e6 {[%emt 0:01:18]} 3. Nf3 {[%emt 0:00:36]} d5 {[%emt 0:01:44]} 4. g3 {[%emt 0:01:19]} Bb4+ {[%emt 0:02:01]} 5. Bd2 {[%emt 0:00:45]} Bd6 {[%emt 0:01:29]} 6. Bg2 {[%emt 0:00:53]} O-O {[%emt 0:00:09]} 7. O-O {[%emt 0:04:37]} Nbd7 {[%emt 0:03:01]} 8. b3 {[%emt 0:02:56]} c6 {[%emt 0:06:21]} 9. Nc3 {[%emt 0:01:35]} b6 {[%emt 0:03:55] E01: Catalan: Early deviations} (9... Re8 10. Qc2 dxc4 11. bxc4 e5 12. e3 exd4 13. exd4 Nf8 14. Rab1 Rb8 15. d5 cxd5 16. cxd5 a6 17. Nd4 {½-½ (65) Cheparinov,I (2712)-Zubov,A (2611) Ankara 2018}) 10. e4 {[%emt 0:06:02]} Nxe4 {[%emt 0:03:54]} 11. Nxe4 {[%emt 0:00:13]} dxe4 {[%emt 0:00:06]} 12. Ng5 {[%emt 0:00:30]} Nf6 {[%emt 0:11:11]} 13. Nxe4 {[%emt 0:00:57]} Nxe4 {[%emt 0:00:20]} 14. Bxe4 {[%emt 0:00:10]} Bb7 {[%emt 0:00:07]} 15. Qc2 {[%emt 0:11:12]} f5 {[%emt 0:05:45]} 16. Bg2 {[%emt 0:04:31]} Qf6 $146 {[%emt 0:04:45]} ({Predecessor:} 16... e5 17. c5 bxc5 18. dxe5 Bxe5 {½-½ (34) Li,X (2275)-Zhang,X (2327) China 2018}) 17. Bc3 {[%emt 0:08:52]} Qf7 {[%emt 0:17:14]} 18. f4 {[%emt 0:17:31]} c5 {[%emt 0:01:34]} 19. Bxb7 {[%emt 0:02:00]} Qxb7 {[%emt 0:00:14]} 20. Qg2 {[%emt 0:01:21]} Qxg2+ {[%emt 0:02:21]} 21. Kxg2 {[%emt 0:01:02]} cxd4 {[%emt 0:00:16]} 22. Bxd4 {[%emt 0:00:23]} Rfd8 {[%emt 0:01:02]} 23. Rad1 {[%emt 0:02:03]} Rd7 $11 {[%emt 0:02:38]} 24. Be5 {[%emt 0:09:12]} Rad8 {[%emt 0:00:08]} 25. Bxd6 {[%emt 0:00:15]} Rxd6 {[%emt 0:00:17]} 26. Rxd6 {[%emt 0:00:10]} Rxd6 {[%emt 0:00:05]} 27. Kf3 {[%emt 0:00:29]} Kf7 {[%emt 0:01:41]} 28. Ke3 {[%emt 0:00:33]} Kf6 {[%emt 0:03:42]} 29. Rc1 {[%emt 0:02:10]} Rc6 {[%emt 0:09:29]} 30. Rd1 {[%emt 0:01:42]} Ke7 {[%emt 0:00:18]} 31. Rd4 {[%emt 0:01:53]} h6 {[%emt 0:01:10]} 32. h4 {[%emt 0:04:30]} Rc8 {[%emt 0:02:16]} 33. h5 {[%emt 0:02:39]} a5 {[%emt 0:04:53]} 34. a3 {[%emt 0:01:50]} g6 {[%emt 0:02:02]} 35. hxg6 {[%emt 0:00:50]} Rg8 {[%emt 0:00:06]} 36. Kf3 {[%emt 0:00:03]} Rxg6 {[%emt 0:00:11]} 37. c5 {[%emt 0:03:42]} bxc5 {[%emt 0:01:19]} 38. Ra4 {[%emt 0:00:13]} Rg8 {[%emt 0:00:21]} 39. Rxa5 {[%emt 0:04:18]} Rb8 {[%emt 0:00:05]} 40. b4 {[%emt 0:02:17]} cxb4 {[%emt 0:00:08]} 41. axb4 {[%emt 0:30:04]} Rxb4 {[%emt 0:30:08]} 42. Ra7+ {[%emt 0:00:13]} Kf6 {[%emt 0:00:05]} 43. Rh7 {[%emt 0:00:06]} Kg6 {[%emt 0:00:24]} 44. Re7 {[%emt 0:00:08]} Rb6 {[%emt 0:00:20]} 45. Re8 {[%emt 0:00:40]} Rc6 {[%emt 0:01:49]} 46. Rg8+ {[%emt 0:02:22]} Kf7 {[%emt 0:00:13]} 47. Rh8 {[%emt 0:00:17]} Kg7 {[%emt 0:00:12]} 48. Re8 {[%emt 0:00:15]} h5 {[%emt 0:00:08]} 49. Re7+ {[%emt 0:00:39]} Kg6 {[%emt 0:00:37]} 50. Re8 {[%emt 0:00:17]} Kg7 {[%emt 0:02:04]} 51. Re7+ {[%emt 0:00:19]} Kg6 {[%emt 0:01:02]} 52. Re8 {[%emt 0:00:07]} Kg7 {[%emt 0:00:47]} 1/2-1/2

[Event "SVK ECo-C Extraliga 2018-19"]
[Site "Slovakia"]
[Date "2019.04.12"]
[Round "9.8"]
[White "Pinter, Erik"]
[Black "Zambor, Norbert"]
[Result "1-0"]
[ECO "B30"]
[WhiteElo "2341"]
[BlackElo "2292"]
[Annotator "NA"]
[PlyCount "63"]
[EventDate "2018.11.10"]
[EventType "team-tourn"]
[EventCountry "SVK"]
[SourceTitle "playchess.com"]
[Source "ChessBase"]
[SourceQuality "1"]
[WhiteTeam "Snina"]
[BlackTeam "Prakovce"]
[TimeControl "40/5400+30:1800+30"]

1. e4 {[%emt 0:00:00]} c5 {[%emt 0:00:00]} 2. Nf3 {[%emt 0:01:29]} Nc6 {[%emt 0:00:00]} 3. Nc3 {[%emt 0:02:00]} e5 {[%emt 0:03:31]} 4. Bc4 {[%emt 0:00:41]} g6 {[%emt 0:13:49]} 5. d3 {[%emt 0:02:02]} h6 {[%emt 0:02:27]} 6. Nd2 {[%emt 0:09:06]} Bg7 {[%emt 0:00:38]} 7. Nf1 {[%emt 0:00:23]} d6 {[%emt 0:02:33]} 8. Ne3 {[%emt 0:03:58]} a6 {[%emt 0:01:09]} 9. a4 {[%emt 0:09:55]} Nf6 {[%emt 0:08:02]} 10. O-O {[%emt 0:05:03]} O-O {[%emt 0:03:29]} 11. Bd2 {[%emt 0:00:48]} Kh7 {[%emt 0:02:57]} 12. Kh1 {[%emt 0:09:10]} Be6 {[%emt 0:07:02]} 13. Ncd5 {[%emt 0:02:57]} Ne7 {[%emt 0:06:11]} 14. Nxf6+ {[%emt 0:07:11]} Bxf6 {[%emt 0:00:22]} 15. a5 {[%emt 0:00:19]} Bg7 {[%emt 0:06:02]} 16. b4 {[%emt 0:08:23]} Bxc4 {[%emt 0:16:11]} 17. Nxc4 {[%emt 0:01:13]} Rc8 {[%emt 0:03:53]} 18. Rb1 {[%emt 0:03:17]} Rc7 {[%emt 0:01:36]} 19. bxc5 {[%emt 0:06:05]} dxc5 {[%emt 0:00:38]} 20. f4 {[%emt 0:00:43]} Nc6 $18 {[%emt 0:01:33]} (20... f5 $16 {might work better.}) 21. fxe5 {[%emt 0:09:22]} Nxe5 {[%emt 0:03:52]} 22. Bf4 {[%emt 0:00:16]} Qe7 {[%emt 0:02:16]} 23. Qe1 {[%emt 0:01:49]} Re8 {[%emt 0:11:49]} 24. Rb3 {[%emt 0:02:16]} f6 {[%emt 0:00:42]} 25. Bxe5 {[%emt 0:07:43]} fxe5 {[%emt 0:00:05]} 26. Qg3 {[%emt 0:00:20]} Rf8 {[%emt 0:00:32]} 27. Rbb1 {[%emt 0:01:06]} Rxf1+ {[%emt 0:01:02]} 28. Rxf1 {[%emt 0:00:08]} Rc6 {[%emt 0:00:25]} 29. Rf3 {[%emt 0:02:15]} Rf6 {[%emt 0:01:10]} 30. Nxe5 {[%emt 0:01:58]} Rxf3 {[%emt 0:00:33]} 31. Qxg6+ {[%emt 0:00:25]} Kg8 {[%emt 0:00:08]} 32. Nxf3 {[%emt 0:00:14]} 1-0

[Event "SVK ECo-C Extraliga 2018-19"]
[Site "Slovakia"]
[Date "2019.04.12"]
[Round "9.8"]
[White "Hros, Roman"]
[Black "Koren, Jan"]
[Result "1-0"]
[ECO "B10"]
[WhiteElo "2195"]
[BlackElo "2115"]
[Annotator "NA"]
[PlyCount "81"]
[EventDate "2018.11.10"]
[EventType "team-tourn"]
[EventCountry "SVK"]
[SourceTitle "playchess.com"]
[Source "ChessBase"]
[SourceQuality "1"]
[WhiteTeam "Liptovska"]
[BlackTeam "Zilina"]
[TimeControl "40/5400+30:1800+30"]

1. e4 {[%emt 0:00:00]} c6 {[%emt 0:00:00]} 2. c3 {[%emt 0:02:06]} d5 {[%emt 0:01:52]} 3. d3 {[%emt 0:00:54]} dxe4 {[%emt 0:01:49]} 4. dxe4 {[%emt 0:00:02]} Qxd1+ {[%emt 0:00:41]} 5. Kxd1 {[%emt 0:00:01]} Nf6 {[%emt 0:02:59]} 6. f3 {[%emt 0:02:36]} e5 {[%emt 0:03:06]} 7. Be3 {[%emt 0:05:56]} Be6 {[%emt 0:06:00]} 8. Nh3 {[%emt 0:02:39]} h6 {[%emt 0:07:02]} 9. Nf2 {[%emt 0:00:31]} Nbd7 {[%emt 0:01:57]} 10. Kc2 {[%emt 0:08:28]} O-O-O {[%emt 0:09:36]} 11. b4 {[%emt 0:05:19]} Kb8 {[%emt 0:12:21]} 12. Nd2 {[%emt 0:02:06]} Bd6 {[%emt 0:04:30]} 13. Bc4 {[%emt 0:11:59]} Bxc4 {[%emt 0:01:18]} 14. Nxc4 {[%emt 0:00:49]} Bc7 {[%emt 0:00:03]} 15. a4 {[%emt 0:01:35]} Nb6 {[%emt 0:01:07]} 16. Nd2 {[%emt 0:09:52]} Nc8 {[%emt 0:06:41]} 17. Nd3 {[%emt 0:06:02]} Rhe8 {[%emt 0:00:57]} 18. b5 {[%emt 0:04:18]} cxb5 {[%emt 0:03:24]} 19. axb5 {[%emt 0:00:11]} Bb6 {[%emt 0:00:23]} 20. Nc4 {[%emt 0:01:03]} Bxe3 {[%emt 0:06:10]} 21. Nxe3 {[%emt 0:00:01]} g6 {[%emt 0:00:09]} 22. Rhd1 {[%emt 0:02:00]} Nd6 {[%emt 0:06:43]} 23. c4 {[%emt 0:02:08]} Nh5 {[%emt 0:00:40]} 24. Kb3 {[%emt 0:08:10]} f5 {[%emt 0:02:03]} 25. exf5 {[%emt 0:01:41]} gxf5 {[%emt 0:00:03]} 26. g4 {[%emt 0:02:39]} Ng7 {[%emt 0:03:43]} 27. Nc5 {[%emt 0:03:03]} e4 {[%emt 0:05:14]} 28. fxe4 {[%emt 0:02:45]} Nxe4 {[%emt 0:01:29]} 29. Nxe4 {[%emt 0:04:30]} Rxd1 {[%emt 0:01:37]} 30. Rxd1 {[%emt 0:00:29]} fxe4 {[%emt 0:00:33]} 31. Kc3 {[%emt 0:02:52]} Ne6 {[%emt 0:01:02]} 32. Rd5 {[%emt 0:04:22]} Nf4 {[%emt 0:02:49]} 33. Rd6 {[%emt 0:00:18]} h5 {[%emt 0:01:33]} 34. g5 {[%emt 0:00:49]} Kc7 {[%emt 0:00:02]} 35. Rf6 {[%emt 0:00:34]} Ne6 {[%emt 0:01:24]} 36. Nd5+ {[%emt 0:01:21]} Kd6 {[%emt 0:00:25]} 37. Nf4 {[%emt 0:00:59]} Ke5 {[%emt 0:00:37]} 38. Nxe6 {[%emt 0:00:58]} Rxe6 {[%emt 0:00:12]} 39. Rxe6+ {[%emt 0:00:42]} Kxe6 {[%emt 0:00:02]} 40. c5 {[%emt 0:01:41]} h4 {[%emt 0:01:48]} 41. Kd4 {[%emt 0:30:29]} 1-0

[Event "SVK ECo-C Extraliga 2018-19"]
[Site "Slovakia"]
[Date "2019.04.12"]
[Round "9.8"]
[White "Kantorik, Marian"]
[Black "Kovacik, Emil"]
[Result "1/2-1/2"]
[ECO "D37"]
[WhiteElo "2188"]
[BlackElo "2093"]
[Annotator "NA"]
[PlyCount "45"]
[EventDate "2018.11.10"]
[EventType "team-tourn"]
[EventCountry "SVK"]
[SourceTitle "playchess.com"]
[Source "ChessBase"]
[SourceQuality "1"]
[WhiteTeam "Dunajov"]
[BlackTeam "Dubnica"]
[TimeControl "40/5400+30:1800+30"]

1. d4 {[%emt 0:00:00]} d5 {[%emt 0:00:00]} 2. Nf3 {[%emt 0:00:00]} Nf6 {[%emt 0:00:00]} 3. c4 {[%emt 0:00:13]} e6 {[%emt 0:00:34]} 4. Nc3 {[%emt 0:00:49]} Be7 {[%emt 0:00:38]} 5. cxd5 {[%emt 0:02:00]} exd5 {[%emt 0:00:30]} 6. Bf4 {[%emt 0:00:28]} c6 {[%emt 0:00:38]} 7. e3 {[%emt 0:02:56]} Bf5 {[%emt 0:01:43]} 8. Bd3 {[%emt 0:01:30]} Bxd3 {[%emt 0:01:27]} 9. Qxd3 {[%emt 0:00:13]} Nbd7 {[%emt 0:04:33]} 10. h3 {[%emt 0:01:57]} Nb6 {[%emt 0:08:21]} 11. O-O {[%emt 0:06:33]} O-O {[%emt 0:00:46]} 12. Rfc1 {[%emt 0:04:04]} Re8 {[%emt 0:04:18]} 13. Rab1 {[%emt 0:03:36]} a5 {[%emt 0:00:32]} 14. Nd2 {[%emt 0:01:33]} h6 {[%emt 0:10:44]} 15. a3 {[%emt 0:07:22]} a4 {[%emt 0:02:00]} 16. Na2 {[%emt 0:05:24]} Ra7 {[%emt 0:30:35]} 17. b4 {[%emt 0:05:47]} axb3 {[%emt 0:00:38]} 18. Rxb3 {[%emt 0:04:45]} Na4 {[%emt 0:03:20]} 19. Qb1 {[%emt 0:05:16]} Qa8 {[%emt 0:00:28]} 20. Be5 {[%emt 0:14:05]} Nd7 {[%emt 0:02:55]} 21. Bf4 {[%emt 0:01:21]} Nf6 {[%emt 0:00:31]} 22. Be5 {[%emt 0:01:26]} Nd7 {[%emt 0:00:04]} 23. Bf4 {[%emt 0:00:47]} 1/2-1/2